bitfinex/quotes_BTCUSD_20241009
["timestamp","ask_amount","ask_price","bid_price","bid_amount"]
[1728490599987,0.108642,62109.0,62104.0,0.161018]
[1728490600212,0.001642,62109.0,62104.0,0.161018]
[1728490600432,0.101642,62109.0,62104.0,0.161018]
[1728490600652,0.16101,62108.0,62101.0,0.0822]
[1728490600869,0.16101,62108.0,62101.0,0.243226]
[1728490600870,0.21612686,62108.0,62101.0,0.243226]
[1728490601077,0.22112686,62108.0,62101.0,0.243226]
[1728490601312,0.161012,62107.0,62101.0,0.243226]
[1728490601525,0.22112686,62108.0,62102.0,0.161024]
[1728490601739,0.05511686,62107.0,62102.0,0.161023]
[1728490601958,0.05511686,62107.0,62103.0,0.161022]
[1728490602214,0.05511686,62107.0,62101.0,0.404251]
[1728490602469,0.005,62108.0,62103.0,0.322044]
[1728490602692,0.262651,62109.0,62102.0,0.161024]
[1728490602933,0.24236353,62105.0,62099.0,0.000821]
[1728490603135,0.26103,62100.0,62099.0,0.000821]
[1728490603576,0.31266158,62100.0,62099.0,0.000821]
[1728490603800,0.31286318,62100.0,62099.0,0.000821]
[1728490604039,0.28015836,62100.0,62099.0,0.000821]
[1728490604265,0.35163545,62100.0,62099.0,0.000821]
[1728490604488,0.28015836,62100.0,62099.0,0.001821]
[1728490604700,0.32785098,62100.0,62099.0,0.001821]
[1728490605382,0.28015836,62100.0,62099.0,0.001821]
[1728490605603,0.28015836,62100.0,62099.0,0.000821]
[1728490606044,0.28015836,62100.0,62099.0,0.001821]
[1728490606045,0.37647143,62100.0,62099.0,0.001821]
[1728490606260,0.35163545,62100.0,62099.0,0.000821]
[1728490606535,0.51547309,62100.0,62099.0,0.000821]
[1728490606788,0.51553551,62100.0,62099.0,0.000821]
[1728490607011,0.44398752,62100.0,62099.0,0.000821]
[1728490607238,0.71455416,62100.0,62099.0,0.000821]
[1728490607739,0.62216815,62100.0,62099.0,0.000821]
[1728490607983,0.74340067,62100.0,62099.0,0.000821]
[1728490608232,0.82091706,62100.0,62086.0,0.00199]
[1728490608462,0.61448631,62098.0,62086.0,0.00199]
[1728490608677,2.72862675,62098.0,62086.0,0.00199]
[1728490608893,2.69195161,62098.0,62086.0,0.00199]
[1728490609113,2.9568351,62098.0,62086.0,0.00199]
[1728490609332,2.70688815,62098.0,62086.0,0.00199]
[1728490609767,2.71888815,62098.0,62086.0,0.00199]
[1728490609987,2.70688815,62098.0,62086.0,0.00199]
[1728490610427,2.72088815,62098.0,62086.0,0.00199]
[1728490610649,2.79440151,62098.0,62086.0,0.00199]
[1728490611088,2.79346497,62098.0,62086.0,0.00199]
[1728490611307,2.60585825,62098.0,62086.0,0.00199]
[1728490611592,1.47965625,62098.0,62091.0,0.24236353]
[1728490611809,1.33587325,62098.0,62091.0,0.24236353]
[1728490612031,0.69947866,62098.0,62091.0,0.0803]
[1728490612298,0.76909304,62098.0,62091.0,0.0803]
[1728490612786,1.4119549,62098.0,62097.0,1.002861]
[1728490613001,1.35343701,62098.0,62097.0,1.002861]
[1728490613242,1.5105733,62098.0,62097.0,1.002861]
[1728490613483,0.82421845,62098.0,62097.0,1.002861]
[1728490613722,1.01331016,62098.0,62097.0,1.002861]
[1728490613933,1.24589358,62098.0,62097.0,1.002861]
[1728490614183,1.40303474,62098.0,62097.0,1.002861]
[1728490614401,1.40303452,62098.0,62097.0,0.002861]
[1728490614621,1.15645132,62098.0,62097.0,0.002861]
[1728490614834,0.8392175,62098.0,62097.0,0.002861]
[1728490615713,0.8452175,62098.0,62097.0,0.002861]
[1728490616118,0.86013301,62098.0,62097.0,0.002861]
[1728490617123,0.6858395,62098.0,62097.0,0.002861]
[1728490617708,0.5049895,62098.0,62097.0,0.002861]
[1728490617943,0.44987264,62098.0,62097.0,0.002861]
[1728490618738,0.189035,62098.0,62097.0,0.002861]
[1728490619290,0.028,62098.0,62097.0,0.002861]
[1728490619539,0.161033,62099.0,62097.0,0.002861]
[1728490619781,0.189035,62098.0,62097.0,0.002861]
[1728490620015,0.23015186,62098.0,62097.0,0.002861]
[1728490620240,0.31615186,62098.0,62097.0,0.002861]
[1728490620467,0.15911686,62098.0,62097.0,0.002861]
[1728490620701,0.003,62098.0,62097.0,0.002861]
[1728490621137,0.001842,62100.0,62097.0,0.002861]
[1728490621660,0.161033,62099.0,62097.0,0.002861]
[1728490621935,0.002,62098.0,62097.0,0.002861]
[1728490622356,0.006,62098.0,62097.0,0.002861]
[1728490622564,0.006,62098.0,62097.0,0.163899]
[1728490622735,0.006,62098.0,62097.0,0.002861]
[1728490622974,0.04958469,62100.0,62097.0,0.002861]
[1728490623189,0.04958469,62100.0,62099.0,0.1814]
[1728490623529,0.04958469,62100.0,62099.0,0.417633]
[1728490623740,0.04958469,62100.0,62099.0,0.2796]
[1728490623956,0.10470155,62100.0,62099.0,0.2566]
[1728490624167,0.16103,62100.0,62099.0,0.2566]
[1728490624387,0.001,62100.0,62099.0,0.2566]
[1728490624602,0.16203,62100.0,62099.0,0.2566]
[1728490625237,0.261035,62098.0,62097.0,0.002861]
[1728490625451,0.1,62098.0,62097.0,0.002861]
[1728490625695,0.261035,62098.0,62097.0,0.002861]
[1728490626881,0.268035,62098.0,62097.0,0.002861]
[1728490627150,0.42887264,62098.0,62097.0,0.002861]
[1728490627386,0.76350057,62098.0,62097.0,0.002861]
[1728490627856,0.61407757,62098.0,62097.0,0.002861]
[1728490628095,0.85625957,62098.0,62097.0,0.002861]
[1728490628329,0.75471957,62098.0,62097.0,0.002861]
[1728490628561,0.75071957,62098.0,62097.0,0.002861]
[1728490628797,0.74771957,62098.0,62097.0,0.002861]
[1728490629009,0.75771957,62098.0,62097.0,0.002861]
[1728490629533,0.76071957,62098.0,62097.0,0.002861]
[1728490629784,0.63217757,62098.0,62097.0,0.002861]
[1728490630038,0.63217757,62098.0,62085.0,0.24318453]
[1728490630039,0.261064,62087.0,62085.0,0.24318453]
[1728490630546,0.34165161,62087.0,62085.0,0.000821]
[1728490631264,0.27006949,62087.0,62085.0,0.000821]
[1728490631499,0.34164353,62087.0,62085.0,0.000821]
[1728490631739,0.70248776,62087.0,62085.0,0.000821]
[1728490631978,0.72635068,62087.0,62085.0,0.000821]
[1728490632214,1.45310206,62087.0,62085.0,0.000821]
[1728490632434,1.46805292,62087.0,62085.0,0.000821]
[1728490632658,0.98743192,62087.0,62085.0,0.000821]
[1728490633143,0.98143192,62087.0,62085.0,0.000821]
[1728490633385,1.09371029,62087.0,62085.0,0.000821]
[1728490633595,1.10271029,62087.0,62085.0,0.000821]
[1728490634030,0.98348106,62087.0,62085.0,0.000821]
[1728490635385,0.99843076,62087.0,62085.0,0.000821]
[1728490637837,0.26109,62077.0,62076.0,0.24236353]
[1728490638045,0.2760397,62077.0,62076.0,0.24236353]
[1728490638282,0.261092,62076.0,62075.0,0.076]
[1728490639207,0.4845829,62076.0,62075.0,0.076]
[1728490639440,0.48458587,62076.0,62075.0,0.076]
[1728490639650,0.48458587,62076.0,62074.0,0.000821]
[1728490639651,0.261095,62075.0,62074.0,0.000821]
[1728490639875,0.261111,62069.0,62068.0,0.0753]
[1728490640088,0.51745826,62069.0,62068.0,0.0753]
[1728490640303,0.51745826,62069.0,62064.0,0.1902]
[1728490640304,0.161121,62065.0,62064.0,0.1902]
[1728490640520,0.30880436,62065.0,62064.0,0.1902]
[1728490640731,0.47864794,62065.0,62064.0,0.1902]
[1728490640947,0.43096458,62065.0,62064.0,0.1902]
[1728490641375,0.47864242,62065.0,62064.0,0.1902]
[1728490641587,0.49360138,62065.0,62064.0,0.1902]
[1728490641805,0.261126,62063.0,62062.0,0.0809]
[1728490642025,0.261129,62062.0,62061.0,0.0005]
[1728490642280,2.04584966,62062.0,62061.0,0.0005]
[1728490642500,2.23665489,62062.0,62061.0,0.0005]
[1728490642751,2.43519898,62062.0,62061.0,0.0005]
[1728490643172,2.10110198,62062.0,62061.0,0.0005]
[1728490643390,2.15797293,62062.0,62061.0,0.0005]
[1728490643664,2.15097293,62062.0,62061.0,0.0005]
[1728490643905,2.22908394,62062.0,62061.0,0.0005]
[1728490644123,2.25499866,62062.0,62061.0,0.0005]
[1728490644344,2.37402286,62062.0,62061.0,0.0005]
[1728490644555,2.07909455,62062.0,62061.0,0.0005]
[1728490644799,2.20499853,62062.0,62061.0,0.0005]
[1728490645044,2.21899853,62062.0,62061.0,0.0005]
[1728490645267,2.22094462,62062.0,62061.0,0.0005]
[1728490645481,2.28370244,62062.0,62061.0,0.0005]
[1728490645728,2.26963243,62062.0,62061.0,0.0005]
[1728490645986,2.26963243,62062.0,62048.0,0.016355]
[1728490645987,0.261162,62049.0,62048.0,0.016355]
[1728490646225,0.1,62049.0,62048.0,0.016355]
[1728490646435,0.18743261,62049.0,62048.0,0.08738738]
[1728490646655,0.1,62049.0,62048.0,0.016355]
[1728490647138,0.44664287,62049.0,62048.0,0.016355]
[1728490647402,0.43100562,62049.0,62048.0,0.016355]
[1728490647825,0.55357462,62049.0,62048.0,0.016355]
[1728490648261,0.56157462,62049.0,62048.0,0.016355]
[1728490648694,0.54154962,62049.0,62048.0,0.016355]
[1728490648928,0.63632448,62049.0,62048.0,0.016355]
[1728490649371,0.52578048,62049.0,62048.0,0.016355]
[1728490649586,0.53578048,62049.0,62048.0,0.016355]
[1728490649846,0.72158571,62049.0,62048.0,0.016355]
[1728490650113,0.261178,62043.0,62042.0,0.195821]
[1728490650368,0.42201564,62043.0,62042.0,0.195821]
[1728490650611,0.43102163,62043.0,62042.0,0.195821]
[1728490651326,0.43102163,62043.0,62042.0,0.000821]
[1728490652020,0.43902163,62043.0,62042.0,0.000821]
[1728490652486,0.43102163,62043.0,62042.0,0.000821]
[1728490652734,0.44202163,62043.0,62042.0,0.000821]
[1728490652955,0.45502163,62043.0,62042.0,0.000821]
[1728490653173,0.5869199,62043.0,62042.0,0.000821]
[1728490653395,0.59592589,62043.0,62042.0,0.000821]
[1728490653600,0.58292589,62043.0,62042.0,0.000821]
[1728490654063,0.59692589,62043.0,62042.0,0.000821]
[1728490654319,0.58592589,62043.0,62042.0,0.000821]
[1728490654500,0.59892589,62043.0,62042.0,0.000821]
[1728490654824,0.58592589,62043.0,62042.0,0.000821]
[1728490655259,0.58292589,62043.0,62042.0,0.000821]
[1728490655467,0.59592589,62043.0,62042.0,0.000821]
[1728490655673,0.45502163,62043.0,62042.0,0.000821]
[1728490656320,0.011,62043.0,62042.0,0.277421]
[1728490656555,0.172178,62043.0,62042.0,0.277421]
[1728490656776,0.13400599,62043.0,62042.0,0.277421]
[1728490656983,0.12000599,62043.0,62042.0,0.277421]
[1728490657189,0.29418399,62043.0,62042.0,0.277421]
[1728490658061,1.12982686,62043.0,62042.0,0.000821]
[1728490658269,1.12982686,62043.0,62038.0,0.000821]
[1728490658270,0.005,62039.0,62038.0,0.000821]
[1728490658484,3.23140286,62039.0,62038.0,0.000821]
[1728490658692,3.96176886,62039.0,62038.0,0.000821]
[1728490658912,3.97669115,62039.0,62038.0,0.000821]
[1728490659153,2.64831215,62039.0,62038.0,0.000821]
[1728490659373,0.95200423,62035.0,62034.0,0.000821]
[1728490659584,4.35444887,62035.0,62034.0,0.000821]
[1728490659790,0.005,62028.0,62023.0,0.000821]
[1728490660001,0.261227,62024.0,62023.0,0.000821]
[1728490660211,0.42206464,62024.0,62023.0,0.000821]
[1728490661125,0.26083764,62024.0,62023.0,0.000821]
[1728490661341,0.42206464,62024.0,62023.0,0.000821]
[1728490661549,0.26083764,62024.0,62023.0,0.000821]
[1728490661783,0.42206464,62024.0,62023.0,0.000821]
[1728490661996,0.1,62026.0,62023.0,0.000821]
[1728490662195,0.1,62024.0,62023.0,0.000821]
[1728490662416,0.105,62024.0,62023.0,0.000821]
[1728490662613,0.22210075,62024.0,62023.0,0.000821]
[1728490662856,0.02000599,62024.0,62023.0,0.082321]
[1728490664207,0.44207063,62024.0,62023.0,0.082321]
[1728490664472,0.28084363,62024.0,62023.0,0.082321]
[1728490664718,0.44207063,62024.0,62023.0,0.082321]
[1728490664961,0.44207063,62024.0,62023.0,0.000821]
[1728490666563,0.87973931,62024.0,62023.0,0.000821]
[1728490666793,0.87973931,62024.0,62021.0,0.0005]
[1728490666794,0.266233,62022.0,62021.0,0.0005]
[1728490667018,3.7063887,62022.0,62021.0,0.0005]
[1728490667264,2.70155987,62022.0,62021.0,0.0005]
[1728490667503,2.43991087,62022.0,62021.0,0.0005]
[1728490667724,2.44191087,62022.0,62021.0,0.0005]
[1728490667952,2.51937937,62022.0,62021.0,0.0005]
[1728490668190,2.53137937,62022.0,62021.0,0.0005]
[1728490668411,2.53137937,62022.0,62001.0,0.000322]
[1728490668412,0.261285,62002.0,62001.0,0.000322]
[1728490668641,0.6043,62002.0,62001.0,0.000322]
[1728490668868,0.166292,61999.0,61968.0,0.161373]
[1728490669098,0.166292,61999.0,61969.0,0.32274]
[1728490669099,0.322681,61981.0,61969.0,0.32274]
[1728490669432,0.105,61987.0,61960.0,0.000821]
[1728490669433,0.1,61978.0,61960.0,0.000821]
[1728490669683,0.161362,61973.0,61965.0,0.161381]
[1728490669919,0.32272,61974.0,61965.0,0.161381]
[1728490669920,0.1,61970.0,61965.0,0.161381]
[1728490670171,0.1,61972.0,61960.0,0.323608]
[1728490670451,0.1,61965.0,61960.0,0.000821]
[1728490670681,0.161389,61962.0,61960.0,0.000821]
[1728490671161,0.261381,61965.0,61960.0,0.000821]
[1728490671397,0.26083764,61962.0,61960.0,0.000821]
[1728490671642,0.3606074,61962.0,61956.0,0.07142]
[1728490671873,0.16083764,61961.0,61956.0,0.07142]
[1728490672417,0.48362164,61961.0,61956.0,0.07142]
[1728490672666,0.16083764,61961.0,61956.0,0.07142]
[1728490672928,0.22924624,61961.0,61956.0,0.07142]
[1728490673161,0.39063924,61961.0,61956.0,0.07142]
[1728490673389,0.22924624,61961.0,61956.0,0.07142]
[1728490673870,0.16083764,61961.0,61956.0,0.07142]
[1728490674365,0.161364,61972.0,61962.0,0.161386]
[1728490674613,0.24236353,61965.0,61963.0,0.161386]
[1728490674859,0.16083764,61970.0,61963.0,0.161386]
[1728490675106,0.24236353,61968.0,61963.0,0.161386]
[1728490675365,0.40320117,61968.0,61963.0,0.161386]
[1728490675598,0.32221064,61968.0,61959.0,0.44101033]
[1728490675810,0.16083764,61968.0,61959.0,0.27961533]
[1728490676246,0.009,61968.0,61964.0,0.27961533]
[1728490676478,0.24236353,61967.0,61964.0,0.27961533]
[1728490676698,0.004,61968.0,61964.0,0.27961533]
[1728490676922,0.009,61968.0,61967.0,0.161376]
[1728490677388,0.005,61968.0,61967.0,0.161376]
[1728490677609,0.005,61968.0,61967.0,0.1924]
[1728490677842,0.5,61967.0,61947.0,0.1821]
[1728490678085,0.161402,61957.0,61947.0,0.1821]
[1728490678320,0.32223964,61957.0,61947.0,0.1821]
[1728490678543,0.83124564,61957.0,61947.0,0.1821]
[1728490679004,0.83124564,61957.0,61944.0,0.0801]
[1728490679005,1.21086097,61957.0,61944.0,0.0801]
[1728490679733,1.22286097,61957.0,61944.0,0.0801]
[1728490679955,0.266417,61951.0,61941.0,0.0005]
[1728490680181,0.42225464,61951.0,61941.0,0.0005]
[1728490680395,0.74898464,61951.0,61941.0,0.0005]
[1728490681772,0.76298464,61951.0,61941.0,0.0005]
[1728490682006,0.27483764,61951.0,61941.0,0.0005]
[1728490682437,0.28883764,61951.0,61941.0,0.0005]
[1728490682651,0.18883764,61951.0,61948.0,0.1978]
[1728490683109,0.028,61951.0,61950.0,0.07741]
[1728490683808,0.014,61951.0,61950.0,0.07741]
[1728490684265,0.019,61951.0,61950.0,0.23883]
[1728490684510,0.019,61951.0,61950.0,0.37552553]
[1728490684736,0.24236353,61960.0,61953.0,0.322824]
[1728490684951,0.24236353,61960.0,61955.0,0.27961533]
[1728490685161,0.009006,61959.0,61955.0,0.27961533]
[1728490685379,0.009006,61959.0,61956.0,0.161404]
[1728490685600,0.24236353,61968.0,61956.0,0.322808]
[1728490685816,0.40320117,61968.0,61957.0,0.322802]
[1728490686039,0.009006,61967.0,61960.0,0.27961533]
[1728490686255,0.24236353,61975.0,61967.0,0.0789]
[1728490686256,0.16083764,61974.0,61967.0,0.0789]
[1728490686522,0.16083764,61974.0,61967.0,0.240276]
[1728490686743,0.24236353,61975.0,61970.0,0.27961533]
[1728490687192,0.24236353,61984.0,61978.0,0.161346]
[1728490687428,0.24236353,61984.0,61971.0,0.1934]
[1728490687429,0.24236353,61984.0,61982.0,0.27961533]
[1728490687646,0.16083764,61993.0,61983.0,0.2753]
[1728490687862,0.16083764,61993.0,61984.0,0.161331]
[1728490687863,0.24236353,61988.0,61984.0,0.161331]
[1728490688088,0.16083764,61993.0,61985.0,0.161328]
[1728490688517,0.24236353,61995.0,61983.0,0.2753]
[1728490688518,0.24236353,61995.0,61986.0,0.161325]
[1728490688523,0.24236353,61994.0,61987.0,0.44093833]
[1728490688739,0.40320117,61994.0,61987.0,0.27961533]
[1728490689400,0.16083764,61994.0,61987.0,0.27961533]
[1728490689619,0.161283,62003.0,61993.0,0.27961533]
[1728490689838,0.24236353,61995.0,61993.0,0.27961533]
[1728490690060,0.322531,62010.0,61993.0,0.27961533]
[1728490690279,0.322531,62010.0,61989.0,0.322636]
[1728490690280,0.24236353,62001.0,62000.0,0.27961533]
[1728490690503,0.24236353,62008.0,62001.0,0.0793]
[1728490690723,0.16083764,62007.0,62001.0,0.0793]
[1728490691174,0.0002,62008.0,62006.0,0.27961533]
[1728490691429,0.0002,62008.0,62001.0,0.35891533]
[1728490691645,0.00861198,62007.0,62001.0,0.35891533]
[1728490691869,0.0002,62008.0,62002.0,0.161284]
[1728490692083,0.0002,62008.0,62001.0,0.35891533]
[1728490692321,0.01361198,62007.0,62001.0,0.35991533]
[1728490692543,0.01361198,62007.0,62001.0,0.0803]
[1728490692764,0.21119306,62006.0,62001.0,0.0793]
[1728490692988,0.161275,62006.0,62002.0,0.001]
[1728490693206,0.16903764,62008.0,62002.0,0.002]
[1728490693207,0.17603764,62008.0,62002.0,0.002]
[1728490693425,0.16903764,62008.0,62002.0,0.001]
[1728490693774,0.0082,62008.0,62002.0,0.001]
[1728490694192,0.0082,62008.0,62001.0,0.35891533]
[1728490694193,0.0002,62008.0,62001.0,0.35891533]
[1728490694625,0.003,62007.0,62001.0,0.35891533]
[1728490694849,0.01485781,62006.0,62001.0,0.35891533]
[1728490695049,0.0002,62008.0,62001.0,0.52020233]
[1728490695269,0.0002,62008.0,62007.0,0.44088733]
[1728490695495,0.0032,62008.0,62001.0,0.0793]
[1728490695690,0.0032,62008.0,62005.0,0.27961533]
[1728490695691,0.0062,62008.0,62005.0,0.27961533]
[1728490695947,0.001,62006.0,62002.0,0.322568]
[1728490696183,0.001,62006.0,62005.0,0.44089133]
[1728490696384,0.001,62006.0,62005.0,0.27961533]
[1728490696741,0.16147,62008.0,62001.0,0.0793]
[1728490696958,0.00887055,62006.0,62001.0,0.0793]
[1728490698224,0.00887055,62006.0,62005.0,0.1]
[1728490698433,0.0002,62008.0,62005.0,0.1]
[1728490700030,0.00895944,62007.0,62005.0,0.1]
[1728490700251,0.262918,62006.0,62005.0,0.1]
[1728490700459,0.56380725,62006.0,62005.0,0.1]
[1728490700681,0.27144108,62006.0,62005.0,0.1]
[1728490701321,0.01060344,62006.0,62005.0,0.37961533]
[1728490701562,0.004644,62006.0,62005.0,0.54089233]
[1728490701800,0.004644,62006.0,62005.0,0.67129184]
[1728490702030,0.004644,62006.0,62005.0,0.61949233]
[1728490702529,0.001644,62006.0,62005.0,0.61949233]
[1728490703033,0.001644,62006.0,62005.0,0.62449233]
[1728490703259,0.001644,62006.0,62005.0,0.46321533]
[1728490703491,0.01060344,62006.0,62005.0,0.1866]
[1728490703723,0.17187744,62006.0,62005.0,0.1866]
[1728490706624,0.161303,61995.0,61994.0,0.0761]
[1728490707058,0.161303,61995.0,61979.0,0.327687]
[1728490707059,0.161331,61984.0,61983.0,0.24236353]
[1728490707513,0.161331,61984.0,61973.0,0.24236353]
[1728490707514,0.25049193,61984.0,61973.0,0.24236353]
[1728490707776,0.1,61979.0,61973.0,0.24236353]
[1728490708009,0.1,61982.0,61973.0,0.24236353]
[1728490708010,0.161353,61976.0,61973.0,0.24236353]
[1728490708223,0.32219364,61975.0,61967.0,0.161375]
[1728490708433,0.32219364,61975.0,61966.0,0.399954]
[1728490708434,0.161363,61972.0,61966.0,0.0772]
[1728490708649,0.161375,61968.0,61966.0,0.0772]
[1728490708881,0.322727,61972.0,61966.0,0.0772]
[1728490708882,0.161371,61969.0,61966.0,0.0772]
[1728490709072,0.17037649,61967.0,61966.0,0.0772]
[1728490709302,0.00900049,61967.0,61966.0,0.0772]
[1728490709511,0.16983813,61967.0,61965.0,0.1986]
[1728490709725,0.16083764,61967.0,61965.0,0.1986]
[1728490710630,0.161378,61966.0,61965.0,0.1986]
[1728490710831,0.17037849,61966.0,61965.0,0.1986]
[1728490711045,0.17037849,61966.0,61965.0,0.1996]
[1728490711259,0.00900049,61966.0,61965.0,0.1996]
[1728490711526,0.00900049,61966.0,61965.0,0.1986]
[1728490711763,0.01000049,61966.0,61965.0,0.1986]
[1728490711990,0.17137849,61966.0,61965.0,0.1986]
[1728490712411,0.17137849,61966.0,61957.0,0.236399]
[1728490712412,0.161394,61961.0,61957.0,0.075]
[1728490712627,0.16283764,61966.0,61958.0,0.24236353]
[1728490712835,0.16283764,61966.0,61957.0,0.075]
[1728490712836,0.00900049,61960.0,61957.0,0.075]
[1728490713252,0.00900049,61960.0,61951.0,0.52780086]
[1728490713253,0.161415,61952.0,61951.0,0.000822]
[1728490713466,0.99917399,61959.0,61951.0,0.000822]
[1728490713467,0.3228,61958.0,61951.0,0.000822]
[1728490713672,0.00900049,61952.0,61951.0,0.000822]
[1728490713887,0.17041549,61952.0,61951.0,0.000822]
[1728490714107,0.2681038,61952.0,61951.0,0.000822]
[1728490714781,0.2681038,61952.0,61951.0,0.004822]
[1728490715012,0.16083764,61957.0,61951.0,0.004822]
[1728490715221,0.34236353,61960.0,61951.0,0.004822]
[1728490715448,0.1,61958.0,61954.0,0.161409]
[1728490715664,0.161405,61956.0,61951.0,0.007822]
[1728490715865,0.1090041,61958.0,61953.0,0.161412]
[1728490716077,0.26083764,61958.0,61951.0,0.007822]
[1728490716283,0.005,61970.0,61951.0,0.007822]
[1728490716284,0.24736353,61976.0,61957.0,0.44101533]
[1728490716494,0.24736353,61976.0,61958.0,0.161399]
[1728490716495,0.1,61964.0,61958.0,0.161399]
[1728490716713,0.1,61964.0,61958.0,0.161398]
[1728490716924,0.1,61962.0,61957.0,0.161401]
[1728490717153,0.005,61960.0,61955.0,0.32281]
[1728490717358,0.01,61960.0,61952.0,0.27961533]
[1728490717587,0.0090041,61959.0,61956.0,0.161404]
[1728490717801,0.0090041,61959.0,61958.0,0.162399]
[1728490718021,0.0090041,61959.0,61958.0,0.161399]
[1728490718471,0.0090041,61959.0,61958.0,0.241299]
[1728490719092,0.0090041,61959.0,61958.0,0.0799]
[1728490720369,0.0100041,61959.0,61958.0,0.0839]
[1728490720552,0.0090041,61959.0,61958.0,0.0839]
[1728490721002,0.0090041,61959.0,61958.0,0.0799]
[1728490722137,0.0090041,61959.0,61958.0,0.0839]
[1728490722372,0.0090041,61959.0,61958.0,0.0869]
[1728490723025,0.322737,61970.0,61962.0,0.161387]
[1728490723265,0.25136888,61968.0,61963.0,0.161384]
[1728490723484,0.25136888,61968.0,61961.0,0.322783]
[1728490723698,0.25136888,61968.0,61965.0,0.16138]
[1728490723699,0.00900535,61968.0,61965.0,0.16138]
[1728490725062,0.56497353,61995.0,61986.0,0.1832]
[1728490725276,0.24236353,61995.0,61988.0,0.322641]
[1728490725486,0.16984341,61994.0,61986.0,0.1832]
[1728490725718,0.16984341,61994.0,61976.0,0.0812]
[1728490725719,0.16135,61977.0,61976.0,0.0812]
[1728490725959,0.161355,61975.0,61974.0,0.1832]
[1728490726388,0.17036077,61975.0,61974.0,0.1832]
[1728490726605,0.00900577,61975.0,61974.0,0.1832]
[1728490727501,0.161373,61968.0,61967.0,0.0802]
[1728490727719,0.16984341,61975.0,61967.0,0.0802]
[1728490727720,0.261369,61970.0,61967.0,0.0802]
[1728490727928,0.161373,61969.0,61967.0,0.0802]
[1728490728154,0.161373,61968.0,61967.0,0.0802]
[1728490728596,0.161373,61968.0,61967.0,0.006]
[1728490728597,0.33221641,61968.0,61967.0,0.006]
[1728490728808,0.43998585,61968.0,61967.0,0.006]
[1728490729021,0.43998585,61968.0,61960.0,0.2608]
[1728490729022,0.161391,61961.0,61960.0,0.2608]
[1728490729248,0.16083764,61967.0,61960.0,0.2608]
[1728490729468,0.322757,61966.0,61960.0,0.2608]
[1728490729677,0.16083764,61965.0,61960.0,0.2608]
[1728490730139,0.32277,61964.0,61960.0,0.2608]
[1728490730370,0.161391,61961.0,61960.0,0.2608]
[1728490730564,0.161391,61961.0,61960.0,0.1805]
[1728490730784,0.17039692,61961.0,61960.0,0.1805]
[1728490731012,0.17059692,61961.0,61960.0,0.1865]
[1728490731481,0.33143456,61961.0,61960.0,0.005]
[1728490731686,0.83278856,61961.0,61960.0,0.005]
[1728490731908,0.261397,61959.0,61958.0,0.000822]
[1728490732128,2.02896297,61959.0,61958.0,0.000822]
[1728490732346,2.03796889,61959.0,61958.0,0.000822]
[1728490732582,1.80890189,61959.0,61958.0,0.000822]
[1728490732811,1.81390189,61959.0,61958.0,0.000822]
[1728490733037,1.04013789,61959.0,61958.0,0.000822]
[1728490733257,0.93999989,61959.0,61958.0,0.000822]
[1728490733478,0.93547361,61959.0,61958.0,0.000822]
[1728490734369,0.93547361,61959.0,61958.0,0.001822]
[1728490734370,0.94647361,61959.0,61958.0,0.001822]
[1728490734580,0.96047361,61959.0,61958.0,0.001822]
[1728490735224,0.73132961,61959.0,61958.0,0.001822]
[1728490735657,1.06557061,61959.0,61958.0,0.001822]
[1728490736090,0.45171428,61959.0,61958.0,0.001822]
[1728490736310,0.19087664,61959.0,61958.0,0.001822]
[1728490736762,0.025,61959.0,61958.0,0.001822]
[1728490737194,0.025,61959.0,61958.0,0.077422]
[1728490737195,0.011,61959.0,61958.0,0.077422]
[1728490737422,0.0002,61961.0,61958.0,0.076422]
[1728490737625,0.025,61959.0,61958.0,0.077422]
[1728490737853,0.014,61959.0,61958.0,0.076422]
[1728490738086,0.0002,61961.0,61958.0,0.076422]
[1728490738293,0.17240297,61959.0,61958.0,0.076422]
[1728490738510,0.17540297,61959.0,61958.0,0.000822]
[1728490738738,0.46063341,61959.0,61958.0,0.000822]
[1728490739460,1.42153541,61959.0,61958.0,0.000822]
[1728490739709,0.88399741,61959.0,61958.0,0.000822]
[1728490740194,0.43324061,61959.0,61958.0,0.000822]
[1728490740901,0.61394061,61959.0,61958.0,0.000822]
[1728490746101,0.43525863,61952.0,61951.0,0.000822]
[1728490747208,0.11300599,61952.0,61951.0,0.000822]
[1728490747428,0.004,61952.0,61951.0,0.000822]
[1728490747846,0.165415,61952.0,61951.0,0.000822]
[1728490748054,0.17442099,61952.0,61951.0,0.000822]
[1728490748940,0.33525863,61952.0,61951.0,0.000822]
[1728490749147,0.56758425,61952.0,61951.0,0.000822]
[1728490749359,1.68270625,61952.0,61951.0,0.000822]
[1728490749575,0.93789525,61952.0,61951.0,0.000822]
[1728490750627,0.56758425,61952.0,61951.0,0.000822]
[1728490750836,0.43525863,61952.0,61951.0,0.000822]
[1728490751252,1.09075163,61952.0,61951.0,0.000822]
[1728490751458,0.43525863,61952.0,61951.0,0.000822]
[1728490752073,0.56690863,61952.0,61951.0,0.000822]
[1728490752285,0.261417,61951.0,61950.0,0.00090394]
[1728490752485,0.65585145,61951.0,61950.0,0.00090394]
[1728490752791,0.43126063,61951.0,61950.0,0.00090394]
[1728490753321,0.27042299,61951.0,61950.0,0.00090394]
[1728490753532,0.004,61952.0,61951.0,0.0791]
[1728490753763,0.002,61952.0,61951.0,0.240517]
[1728490754017,0.24236353,61956.0,61951.0,0.0791]
[1728490754242,0.009006,61953.0,61951.0,0.240517]
[1728490754465,0.009006,61953.0,61951.0,0.0791]
[1728490754691,0.009006,61953.0,61951.0,0.240515]
[1728490754932,0.163415,61952.0,61951.0,0.0871]
[1728490755126,0.37377674,61952.0,61951.0,0.0871]
[1728490755371,0.48178274,61952.0,61951.0,0.008]
[1728490756191,0.261417,61951.0,61950.0,0.00090394]
[1728490756400,0.42225464,61951.0,61950.0,0.00090394]
[1728490756609,0.43126064,61951.0,61950.0,0.00090394]